bitfinex-derivatives/quotes_ETHF0:USTF0_20241024
["timestamp","ask_amount","ask_price","bid_price","bid_amount"]
[1729774801938,2.44871,2531.5,2531.2,2.86504409]
[1729774802147,0.39535,2531.6,2531.5,0.39535]
[1729774802335,1.71491,2532.0,2531.5,2.46965409]
[1729774802538,0.39534,2531.6,2531.5,2.86500409]
[1729774802838,0.39534,2531.7,2531.6,0.39533]
[1729774803335,0.7267,2532.0,2531.6,0.6763]
[1729774803832,0.39532,2531.7,2531.6,0.6763]
[1729774804034,0.39532,2531.7,2531.6,1.07164]
[1729774804337,0.39534,2531.6,2531.5,2.46965409]
[1729774805239,0.39534,2531.6,2531.5,2.86500409]
[1729774805432,0.39534,2531.6,2531.5,2.46965409]
[1729774806136,0.39534,2531.6,2531.5,2.72033767]
[1729774807642,0.39534,2531.6,2531.5,3.11568767]
[1729774807940,0.6665,2531.8,2531.5,2.72033767]
[1729774808533,1.71491,2532.0,2531.8,0.3953]
[1729774808534,0.7267,2532.0,2531.8,0.3953]
[1729774808740,0.39528,2532.0,2531.9,2.46965409]
[1729774808935,0.39528,2532.0,2531.9,3.60034409]
[1729774809139,0.39528,2532.0,2531.9,4.30274409]
[1729774809351,0.39528,2532.0,2531.9,3.90745409]
[1729774810644,0.39528,2532.0,2531.9,4.30274409]
[1729774811033,0.39528,2532.0,2531.9,3.90745409]
[1729774811234,0.39528,2532.0,2531.9,4.30274409]
[1729774811437,0.39528,2532.0,2531.9,4.549189]
[1729774811646,4.87459,2532.3,2531.9,7.361699]
[1729774811844,3.60303,2532.3,2532.2,2.46965409]
[1729774812534,3.46758,2532.3,2532.2,2.46965409]
[1729774812930,0.39523,2532.3,2532.2,2.46965409]
[1729774813141,0.6921,2532.5,2532.2,2.46965409]
[1729774813343,0.39522,2532.4,2532.3,0.39523]
[1729774813549,0.39522,2532.4,2532.3,2.86488409]
[1729774814338,2.39143,2532.7,2532.3,2.86488409]
[1729774814534,0.39522,2532.4,2532.3,2.46965409]
[1729774814941,0.39522,2532.4,2532.3,2.86488409]
[1729774815552,0.39522,2532.4,2532.3,2.46965409]
[1729774815849,0.39522,2532.4,2532.3,2.86488409]
[1729774816733,0.39522,2532.4,2532.3,2.46965409]
[1729774817156,0.39522,2532.4,2532.3,2.86488409]
[1729774817349,0.39522,2532.4,2532.3,2.46965409]
[1729774817549,0.39522,2532.4,2531.9,5.67745409]
[1729774817550,0.39528,2532.0,2531.9,5.67745409]
[1729774817850,0.39528,2532.0,2531.9,6.07274409]
[1729774818050,1.70269,2532.3,2531.9,5.67745409]
[1729774818352,0.39527,2532.1,2531.9,6.07273409]
[1729774818752,0.39527,2532.1,2532.0,0.39528]
[1729774819747,0.39526,2532.1,2532.0,0.39527]
[1729774820346,0.7146,2532.3,2531.9,5.92353476]
[1729774820546,0.7146,2532.3,2532.2,2.46965409]
[1729774820547,0.97208004,2532.3,2532.2,2.46965409]
[1729774820749,0.39522,2532.4,2532.3,0.39522]
[1729774820954,0.39522,2532.4,2532.3,2.46965409]
[1729774822151,0.39522,2532.4,2532.3,2.86488409]
[1729774823250,3.2078,2532.7,2532.3,6.41845409]
[1729774823556,0.39517,2532.7,2532.6,2.46965409]
[1729774824662,0.39517,2532.7,2532.6,2.86483409]
[1729774824853,0.39517,2532.8,2532.7,0.39516]
[1729774825150,0.39517,2532.7,2532.6,2.86482409]
[1729774825346,0.39516,2532.8,2532.7,0.39516]
[1729774825545,0.98782,2533.0,2532.6,2.46965409]
[1729774825745,0.39517,2532.7,2532.6,2.46965409]
[1729774825950,0.39517,2532.7,2532.6,2.86483409]
[1729774826456,0.98782,2533.0,2532.6,2.46965409]
[1729774826657,0.39517,2532.7,2532.6,2.86482409]
[1729774827160,0.39517,2532.7,2532.6,3.54033409]
[1729774827349,0.39517,2532.7,2532.6,3.14515409]
[1729774828254,0.39517,2532.7,2532.6,3.54033409]
[1729774828455,0.39517,2532.7,2532.6,3.14515409]
[1729774828657,0.39517,2532.7,2532.6,0.24793618]
[1729774828852,0.98785,2532.9,2532.4,5.67745409]
[1729774829054,0.3952,2532.5,2532.4,5.67745409]
[1729774829456,0.3952,2532.5,2532.4,6.32563335]
[1729774829758,1.12849,2532.6,2532.5,0.3952]
[1729774829962,1.12849,2532.6,2532.4,5.93042335]
[1729774829963,0.3952,2532.5,2532.4,5.93042335]
[1729774830154,0.3952,2532.5,2532.4,6.32563335]
[1729774830953,0.7333,2532.6,2532.4,6.32563335]
[1729774830954,0.39519,2532.6,2532.5,0.3952]
[1729774831455,0.98788,2532.8,2532.4,6.32563335]
[1729774831456,0.3952,2532.5,2532.4,6.32563335]
[1729774831854,0.98785,2532.9,2532.4,5.93042335]
[1729774832166,0.39519,2532.6,2532.5,0.39519]
[1729774832752,0.39519,2532.6,2532.4,3.46076926]
[1729774832753,0.98788,2532.8,2532.4,3.46076926]
[1729774832954,0.98785,2532.9,2532.7,2.46965409]
[1729774833157,0.39515,2532.8,2532.7,2.46965409]
[1729774834963,1.67649,2533.1,2532.7,2.46965409]
[1729774835153,0.39512,2533.0,2532.9,2.46965409]
[1729774835549,0.39511,2533.1,2533.0,0.39511]
[1729774835951,0.39511,2533.1,2533.0,1.11031]
[1729774836157,0.39511,2533.1,2533.0,0.7152]
[1729774837066,0.39511,2533.1,2533.0,1.11032]
[1729774837459,0.3951,2533.2,2533.0,1.1103]
[1729774837759,0.3951,2533.2,2533.1,2.46965409]
[1729774837760,0.39509,2533.2,2533.1,2.46965409]
[1729774838464,0.39507,2533.3,2533.2,0.39508]
[1729774838663,0.98756,2533.7,2533.2,0.728]
[1729774838862,0.39501,2533.7,2533.6,2.46965409]
[1729774845367,0.39501,2533.7,2533.6,2.72346858]
[1729774846767,3.9472,2533.7,2533.4,2.46965409]
[1729774846963,0.39507,2533.3,2533.0,5.67745409]
[1729774847172,0.3951,2533.1,2533.0,5.67745409]
[1729774847556,4.3431,2533.1,2533.0,5.67745409]
[1729774847762,4.3431,2533.1,2533.0,2.46965409]
[1729774848165,4.3431,2533.1,2533.0,2.72249523]
[1729774848572,0.3951,2533.1,2533.0,2.72249523]
[1729774848770,0.3951,2533.1,2533.0,3.11761523]
[1729774849168,0.3951,2533.2,2533.1,0.3951]
[1729774849371,3.2078,2533.4,2533.1,0.3951]
[1729774849667,3.60286,2533.4,2533.3,2.46965409]
[1729774849867,3.60286,2533.4,2533.3,2.86472409]
[1729774850070,3.60286,2533.4,2533.3,2.46965409]
[1729774851671,3.60286,2533.4,2533.3,2.71965372]
[1729774852466,0.39506,2533.4,2533.3,2.71965372]
[1729774854073,0.39509,2533.2,2533.1,2.46965409]
[1729774854277,0.39512,2533.0,2532.9,2.46965409]
[1729774855275,1.85522,2533.0,2532.9,2.46965409]
[1729774856370,5.4081,2533.0,2532.6,3.2078]
[1729774856577,0.39517,2532.7,2532.6,3.2078]
[1729774856881,0.39517,2532.7,2532.6,6.61400566]
[1729774859468,0.7258,2533.1,2532.6,6.61400566]
[1729774859662,0.39511,2533.1,2532.9,2.86477409]
[1729774859867,0.39511,2533.1,2533.0,0.7392]
[1729774861178,3.2078,2533.2,2533.0,1.13432]
[1729774861372,0.3951,2533.2,2533.1,2.86475409]
[1729774861983,0.39508,2533.3,2533.2,0.39508]
[1729774862185,2.45691,2533.5,2533.2,3.18785409]
[1729774862186,0.746,2533.5,2533.2,3.18785409]
[1729774862371,3.2078,2533.6,2533.3,0.39506]
[1729774862372,0.39507,2533.4,2533.3,0.39506]
[1729774862577,0.39507,2533.4,2533.2,0.7182]
[1729774862578,0.39504,2533.5,2533.4,2.46965409]
[1729774863073,4.34224,2533.5,2533.4,2.46965409]
[1729774863378,0.39504,2533.5,2533.4,2.46965409]
[1729774864079,0.39504,2533.5,2533.4,2.86471409]
[1729774864279,0.39504,2533.5,2533.4,2.46965409]
[1729774865982,0.39507,2533.3,2533.2,3.44232345]
[1729774866175,0.39507,2533.3,2533.2,0.25446936]
[1729774866375,0.3951,2533.1,2533.0,2.46965409]
[1729774866578,0.7175,2533.2,2532.8,3.83265409]
[1729774866778,0.39513,2532.9,2532.8,3.83265409]
[1729774867074,0.7398,2533.0,2532.8,3.83265409]
[1729774867075,0.39513,2533.0,2532.9,0.39513]
[1729774867574,3.2078,2533.3,2532.8,2.46965409]
[1729774867777,0.39507,2533.3,2533.2,2.46965409]
[1729774868173,4.34227,2533.3,2533.2,2.46965409]
[1729774868776,0.39507,2533.3,2533.2,3.17635409]
[1729774868976,0.39507,2533.3,2533.2,3.87975409]
[1729774869284,0.39507,2533.3,2533.2,4.27484409]
[1729774869988,5.65269,2533.6,2533.3,0.39506]
[1729774869989,0.39506,2533.4,2533.3,0.39506]
[1729774870184,0.39506,2533.4,2533.3,2.86471409]
[1729774870982,0.39506,2533.4,2533.3,2.86472409]
[1729774871581,0.9875,2533.8,2533.3,6.41685409]
[1729774871782,0.39506,2533.5,2533.4,0.6897]
[1729774872272,0.39506,2533.5,2533.4,1.08476]
[1729774873080,0.39506,2533.5,2533.4,0.6897]
[1729774873875,0.39506,2533.5,2533.4,0.39506]
[1729774874289,0.39506,2533.5,2533.4,2.86471409]
[1729774874583,0.9875,2533.8,2533.4,2.46965409]
[1729774874794,0.39504,2533.5,2533.4,2.86470409]
[1729774875581,0.39504,2533.5,2533.4,2.46965409]
[1729774879194,1.12094,2533.5,2533.4,2.46965409]
[1729774879903,0.39507,2533.3,2533.2,5.24275409]
[1729774880205,0.39507,2533.3,2533.2,5.4966328]
[1729774880501,0.39507,2533.3,2533.2,4.1336328]
[1729774880704,0.39507,2533.3,2533.2,4.25717211]
[1729774881499,0.39507,2533.3,2533.2,4.65226211]
[1729774882505,0.39507,2533.3,2533.2,4.5287228]
[1729774883104,0.39507,2533.4,2533.3,0.39507]
[1729774883308,0.39507,2533.4,2533.3,2.86472409]
[1729774884400,0.39507,2533.4,2533.3,2.46965409]
[1729774885100,0.39507,2533.4,2533.3,2.86472409]
[1729774885302,3.2078,2533.6,2533.5,0.39504]
[1729774885303,3.60283,2533.6,2533.5,0.39504]
[1729774885711,0.39502,2533.7,2533.6,0.39501]
[1729774886008,0.98749,2533.9,2533.4,1.03241715]
[1729774886009,0.39504,2533.6,2533.5,0.39503]
[1729774886202,0.39501,2533.7,2533.6,2.46965409]
[1729774886609,1.87551,2533.7,2533.6,2.46965409]
[1729774888009,1.12761,2533.7,2533.6,2.46965409]
[1729774889610,0.7326,2533.7,2533.3,7.10494124]
[1729774889810,3.2078,2533.5,2533.2,0.25387871]
[1729774890006,0.709,2533.4,2533.1,3.89717124]
[1729774890212,0.39509,2533.2,2533.1,2.86474409]
[1729774890412,0.39509,2533.2,2533.1,4.02070607]
[1729774890603,4.19543,2533.5,2533.1,3.62561607]
[1729774890807,0.39508,2533.4,2533.3,2.86471409]
[1729774891002,0.39506,2533.5,2533.4,0.39504]
[1729774891202,41.5326,2533.7,2533.4,0.39504]
[1729774891203,3.2078,2534.4,2533.4,10.65590279]
[1729774891407,4.19508,2534.4,2534.1,2.46965409]
[1729774891611,4.19508,2534.4,2533.9,2.46965409]
[1729774891612,0.6812,2534.3,2533.9,2.46965409]
[1729774891811,0.39496,2534.0,2533.9,2.46965409]
[1729774893407,0.39496,2534.0,2533.7,5.10556558]
[1729774893408,3.9464,2534.0,2533.7,5.10556558]
[1729774893608,0.39499,2533.8,2533.7,3.11846258]
[1729774893909,0.39499,2533.8,2533.7,3.24198008]
[1729774894413,3.2078,2534.1,2533.8,0.39499]
[1729774894414,0.39496,2534.0,2533.8,0.39499]
[1729774894717,0.39496,2534.0,2533.9,0.7277]
[1729774897308,0.39499,2533.8,2533.7,2.46965409]
[1729774897509,0.39503,2533.6,2533.5,3.50376709]
[1729774897712,0.39503,2533.6,2533.5,2.46965409]
[1729774898024,0.39503,2533.6,2533.5,2.72017377]
[1729774898521,0.39507,2533.3,2533.2,2.46965409]
[1729774899410,0.39507,2533.3,2533.2,2.71771794]
[1729774899915,0.39507,2533.3,2533.2,2.46965409]
[1729774903423,0.39507,2533.3,2533.2,2.59319391]
[1729774903615,0.39507,2533.3,2533.2,2.46965409]
[1729774903817,0.39507,2533.3,2533.2,2.59319381]
[1729774904609,0.39507,2533.3,2533.2,3.31199381]
[1729774905013,0.39507,2533.3,2533.2,3.70708381]
[1729774905925,0.7386,2533.5,2533.2,3.70708381]
[1729774905926,0.39505,2533.5,2533.4,0.39504]
[1729774906126,0.39504,2533.5,2533.4,2.59318409]
[1729774906321,0.39504,2533.5,2533.4,2.59318283]
[1729774906929,0.3949,2534.5,2533.5,0.39503]
[1729774907218,0.6799,2534.6,2534.4,2.46965409]
[1729774910824,0.6982,2534.7,2534.4,2.46965409]
[1729774911027,0.6982,2534.7,2534.6,3.2078]
[1729774911329,0.6982,2534.7,2534.4,2.46965409]
[1729774912622,1.09307,2534.7,2534.4,2.46965409]
[1729774912825,1.4154,2534.6,2534.4,2.46965409]
[1729774913023,5.361,2534.6,2534.3,3.2078]
[1729774913223,0.39489,2534.5,2534.3,3.2078]
[1729774913529,5.361,2534.6,2534.0,2.46965409]
[1729774913530,0.39493,2534.3,2534.0,2.46965409]
[1729774913824,0.6926,2534.2,2534.0,2.46965409]
[1729774914628,40.8,2534.1,2534.0,2.46965409]
[1729774915220,0.6926,2534.2,2534.0,2.46965409]
[1729774915616,41.4926,2534.2,2534.0,2.46965409]
[1729774916031,1.08754,2534.2,2534.0,2.46965409]
[1729774916636,3.9464,2534.1,2534.0,2.46965409]
[1729774917019,4.696,2534.1,2534.0,2.46965409]
[1729774918222,5.09095,2534.1,2534.0,2.46965409]
[1729774918525,4.696,2534.1,2534.0,2.46965409]
[1729774919326,40.8,2534.5,2534.0,2.86461409]
[1729774919327,0.3949,2534.4,2534.0,2.86461409]
[1729774919532,40.8,2534.5,2534.3,2.46965409]
[1729774919533,0.39489,2534.5,2534.3,2.46965409]
[1729774919734,3.8975,2534.6,2534.3,2.46965409]
[1729774920027,0.3949,2534.4,2534.3,2.46965409]
[1729774920735,1.445,2534.5,2534.3,2.46965409]
[1729774920925,3.9456,2534.4,2534.1,6.42065409]
[1729774921227,1.445,2534.5,2534.1,2.46965409]
[1729774921433,0.39493,2534.3,2534.1,2.46965409]
[1729774921633,1.445,2534.5,2534.1,2.46965409]
[1729774921634,0.39493,2534.2,2534.1,2.46965409]
[1729774921933,3.9456,2534.4,2533.9,0.7014]
[1729774922130,0.39498,2533.9,2533.8,6.35925409]
[1729774922325,0.39498,2533.9,2533.8,3.2078]
[1729774923029,4.34138,2533.9,2533.8,3.2078]
[1729774923223,4.34138,2533.9,2533.5,3.2078]
[1729774923224,0.39503,2533.6,2533.5,3.2078]
[1729774923628,4.34223,2533.6,2533.5,3.2078]
[1729774924524,7.55003,2533.6,2533.0,0.25063239]
[1729774924727,1.5036,2533.5,2532.7,7.08155409]
[1729774924929,0.39515,2532.8,2532.7,7.08155409]
[1729774925122,0.39515,2532.8,2532.7,4.6119]
[1729774925535,0.39513,2533.0,2532.7,4.6119]
[1729774925833,0.7306,2533.4,2532.9,2.46965409]
[1729774926028,0.39508,2533.3,2533.0,3.60292]
[1729774926830,0.3951,2533.2,2533.0,3.2078]
[1729774927438,0.3951,2533.2,2533.0,3.60292]
[1729774927637,41.5306,2533.4,2533.0,3.2078]
[1729774927841,0.39509,2533.2,2533.0,3.60291]
[1729774928133,0.39509,2533.2,2533.0,3.2078]
[1729774928342,0.7306,2533.4,2533.0,3.2078]
[1729774928543,0.3951,2533.1,2533.0,3.2078]
[1729774928832,0.39513,2533.0,2532.7,4.26891409]
[1729774929037,0.39513,2533.0,2532.7,3.87375409]
[1729774929337,41.5306,2533.4,2532.7,3.87375409]
[1729774929728,0.39515,2532.8,2532.7,3.87375409]
[1729774930234,3.2078,2533.2,2532.7,3.87375409]
[1729774930235,0.39514,2532.9,2532.7,3.87375409]
[1729774930535,3.2078,2533.2,2532.7,3.87375409]
[1729774930536,0.39515,2532.8,2532.7,3.87375409]
[1729774930938,0.39515,2532.9,2532.7,3.87375409]
[1729774931235,0.39514,2532.9,2532.7,3.87375409]
[1729774931425,0.39515,2532.8,2532.7,3.87375409]
[1729774931631,0.39514,2532.9,2532.7,3.87375409]
[1729774932032,3.2078,2533.2,2532.7,3.87375409]
[1729774932237,0.39515,2532.8,2532.7,3.87375409]
[1729774932938,0.39515,2532.9,2532.7,3.87375409]
[1729774933842,0.39511,2533.1,2532.8,0.39514]
[1729774934139,0.39511,2533.1,2532.9,2.46965409]
[1729774934539,0.7306,2533.4,2532.9,2.46965409]
[1729774934833,0.39512,2533.0,2532.9,2.46965409]
[1729774935232,0.39511,2533.1,2532.9,2.46965409]
[1729774935636,0.39512,2533.0,2532.9,2.46965409]
[1729774936036,0.39515,2532.8,2532.7,1.4041]
[1729774940645,0.39515,2532.8,2532.7,3.87375409]
[1729774940848,0.39512,2533.1,2532.7,8.21691409]
[1729774941143,0.39512,2533.1,2533.0,2.46965409]
[1729774941450,2.41397,2533.4,2532.9,3.2078]
[1729774941636,0.39512,2533.0,2532.9,3.2078]
[1729774948740,2.41397,2533.4,2532.9,3.2078]
[1729774948741,1.4263,2533.4,2532.9,3.948]
[1729774948941,1.4263,2533.4,2533.1,5.67745409]
[1729774948942,0.39509,2533.2,2533.1,5.67745409]
[1729774949343,0.39515,2532.8,2532.7,2.71514137]
[1729774949546,0.39515,2532.8,2532.7,3.90215409]
[1729774949750,0.39515,2532.8,2532.7,7.85015409]
[1729774950654,0.39515,2532.8,2532.7,8.56595409]
[1729774952047,0.39515,2532.8,2532.7,8.96112409]
[1729774952743,0.98777,2533.1,2532.7,8.96112409]
[1729774952942,0.98777,2533.1,2532.7,5.01312409]
[1729774953251,0.39515,2532.8,2532.7,5.01312409]
[1729774953846,0.39515,2532.8,2532.7,8.56595409]
[1729774954348,0.39515,2532.8,2532.7,8.96112409]
[1729774954550,0.98777,2533.1,2532.7,8.96112409]
[1729774954748,0.98777,2533.1,2532.7,5.01312409]
[1729774954948,0.39515,2532.8,2532.7,5.01312409]
[1729774955454,0.39515,2532.8,2532.7,8.96112409]
[1729774956350,0.39514,2532.9,2532.8,0.39514]
[1729774956652,0.39515,2532.8,2532.7,4.61795409]
[1729774957046,0.39515,2532.8,2532.7,8.56595409]
[1729774957250,0.39515,2532.8,2532.7,8.96112409]
[1729774957751,0.39515,2532.8,2532.7,12.16892409]
[1729774958746,4.89451,2533.3,2532.7,11.77375409]
[1729774958949,0.39507,2533.4,2533.3,0.39506]
[1729774959154,0.98756,2533.7,2533.3,5.67745409]
[1729774959347,1.97482,2534.1,2533.1,0.735]
[1729774959348,0.98751,2533.8,2533.6,2.46965409]
[1729774959655,0.39501,2533.7,2533.6,2.46965409]
[1729774960251,0.98751,2533.8,2533.5,0.735]
[1729774960447,0.39503,2533.6,2533.5,0.735]
[1729774963653,0.39507,2533.3,2533.2,4.89588]
[1729774963859,0.39507,2533.3,2533.2,5.72090946]
[1729774964254,0.39507,2533.3,2533.2,5.72091946]
[1729774965054,0.39507,2533.3,2533.2,4.67608399]
[1729774965560,0.39507,2533.3,2533.2,4.15746453]
[1729774965952,0.39507,2533.3,2533.2,4.55255453]
[1729774966154,0.39507,2533.3,2533.2,4.15746453]
[1729774966450,0.39507,2533.3,2533.2,4.55255453]
[1729774967052,0.39507,2533.3,2533.2,4.15746453]
[1729774967353,0.39507,2533.3,2533.2,4.55255453]
[1729774967556,0.39507,2533.3,2533.2,4.15746453]
[1729774969547,0.39507,2533.3,2533.2,3.45596453]
[1729774969752,0.39507,2533.3,2533.2,3.2078]
[1729774969952,0.7348,2533.4,2532.9,4.9965591]
[1729774970154,0.7348,2533.4,2532.9,3.2078]
[1729774970155,0.39512,2533.0,2532.9,3.2078]
[1729774970655,4.34312,2533.0,2532.9,3.2078]
[1729774971352,4.93582,2533.0,2532.6,4.49622528]
[1729774971657,0.39517,2532.7,2532.6,4.49622528]
[1729774971845,0.39517,2532.7,2532.6,4.61978538]
[1729774972053,0.39517,2532.7,2532.6,4.49622528]
[1729774972361,0.39517,2532.7,2532.6,3.33136571]
[1729774972756,3.9488,2532.7,2532.4,1.0339591]
[1729774973060,0.39521,2532.4,2532.3,3.2078]
[1729774973253,0.39521,2532.4,2532.3,3.33138132]
[1729774973463,2.1564,2532.9,2532.3,6.42105248]
[1729774973649,2.1564,2532.9,2532.4,0.12357544]
[1729774973650,0.39515,2532.8,2532.4,0.12357544]
[1729774973855,0.39518,2532.7,2532.4,0.7548]
[1729774974354,0.39519,2532.6,2532.4,0.7548]
[1729774975853,0.3952,2532.5,2532.4,0.7548]
[1729774976354,42.9564,2532.9,2532.3,3.2078]
[1729774976555,0.39521,2532.4,2532.3,3.2078]
[1729774977355,4.34401,2532.4,2532.3,3.2078]
[1729774978753,3.9488,2532.4,2532.0,0.929139]
[1729774978959,2.1414,2532.3,2531.9,3.9517]
[1729774979258,0.39528,2532.0,2531.9,3.2078]
[1729774979752,0.39532,2531.7,2531.6,3.2078]
[1729774980064,4.61105409,2532.3,2531.6,3.2078]
[1729774980560,0.39532,2531.7,2531.6,3.2078]
[1729774982056,3.2078,2532.1,2531.6,3.2078]
[1729774982359,0.39528,2532.0,2531.7,2.46965409]
[1729774982550,0.39528,2532.0,2531.7,3.17975409]
[1729774982749,3.2078,2532.1,2531.7,3.17975409]
[1729774982750,0.39527,2532.1,2531.7,3.17975409]
[1729774983059,0.39526,2532.2,2531.8,0.3953]
[1729774983259,2.1414,2532.3,2531.7,3.17975409]
[1729774983650,0.39528,2532.0,2531.7,3.17975409]
[1729774983851,0.39528,2532.0,2531.7,3.57507409]
[1729774984556,2.1414,2532.3,2531.7,3.17975409]
[1729774984755,0.39528,2532.1,2531.7,3.57506409]
[1729774984963,2.1414,2532.3,2531.7,3.17975409]
[1729774985156,2.1414,2532.3,2531.9,2.46965409]
[1729774985357,4.19572,2532.8,2532.1,2.46965409]
[1729774985660,0.39523,2532.3,2532.2,0.7299]
[1729774986162,0.39523,2532.4,2532.2,0.7299]
[1729774986468,6.28752,2532.8,2532.2,0.7299]
[1729774986469,0.39523,2532.3,2532.2,0.7299]
[1729774988765,0.39526,2532.1,2532.0,0.7211]
[1729774990357,0.39525,2532.2,2532.0,0.7211]
[1729774990561,0.39521,2532.4,2532.1,3.57330409]
[1729774990756,0.39523,2532.3,2532.2,0.7578]
[1729774993162,3.9488,2532.3,2531.9,3.2078]
[1729774993359,0.98807,2532.4,2531.5,1.03451114]
[1729774993360,0.39532,2531.7,2531.6,4.6338]
[1729774993561,0.98816,2532.1,2531.6,4.6338]
[1729774993767,0.39532,2531.8,2531.6,5.02913]
[1729774994162,0.39532,2531.7,2531.6,4.6338]
[1729774996465,0.39532,2531.7,2531.6,3.9443]
[1729774996675,0.39532,2531.7,2531.6,3.2078]
[1729774997367,4.34492,2531.7,2531.6,3.2078]
[1729774997672,0.39535,2531.5,2531.4,0.7472]
[1729774998966,0.39535,2531.5,2531.4,1.14257]
[1729774999468,3.2078,2532.5,2531.4,7.16725409]
[1729774999667,0.3953,2531.9,2531.8,2.46965409]
[1729774999970,0.3953,2531.9,2531.8,3.19995409]
[1729775000166,0.3953,2531.9,2531.8,3.59526409]
[1729775000470,0.3953,2531.9,2531.8,0.7303]
[1729775000670,0.3953,2531.9,2531.8,1.12561]
[1729775001071,0.3953,2531.9,2531.8,0.7303]
[1729775001561,2.2213,2532.1,2531.5,0.25195888]
[1729775001766,0.39532,2531.7,2531.6,0.7303]
[1729775003873,3.20949,2532.1,2531.4,5.93124367]
[1729775003874,4.69095409,2532.1,2531.4,3.46158958]
[1729775004165,4.69095409,2532.1,2531.1,0.7029]
[1729775004166,0.3954,2531.2,2531.1,3.2078]
[1729775004677,0.39542,2531.1,2531.0,1.4844]
[1729775006668,3.2078,2531.5,2531.0,1.4844]
[1729775006669,0.39541,2531.2,2531.0,1.4844]
[1729775006966,0.39541,2531.2,2531.1,3.6032]
[1729775007467,0.39542,2531.1,2531.0,1.11803]
[1729775007663,0.39542,2531.1,2531.0,0.7226]
[1729775014376,3.9512,2531.1,2530.7,3.2078]
[1729775014683,0.39546,2530.8,2530.7,3.2078]
[1729775014984,0.9886,2531.0,2530.7,3.2078]
[1729775015169,0.39546,2530.8,2530.7,3.2078]
[1729775015770,0.39551,2530.5,2530.4,3.2078]
[1729775015981,0.39551,2530.5,2530.4,4.31863]
[1729775016177,0.39551,2530.5,2530.4,4.671]
[1729775016373,0.39551,2530.5,2530.4,5.06653]
[1729775016589,0.39551,2530.5,2530.4,4.92370497]
[1729775016883,0.39551,2530.5,2530.4,5.31923497]
[1729775017182,0.39551,2530.5,2530.4,4.92370497]
[1729775017683,0.39551,2530.5,2530.4,5.95821611]
[1729775017882,0.39551,2530.5,2530.4,4.92370497]
[1729775018384,0.39551,2530.5,2530.4,5.95821611]
[1729775018990,0.39551,2530.5,2530.4,4.92370497]
[1729775021183,0.39551,2530.5,2530.4,6.35372611]
[1729775021376,0.39551,2530.5,2530.4,5.31921497]
[1729775021577,0.39551,2530.5,2530.4,6.47738768]
[1729775021988,0.39551,2530.5,2530.4,6.35372611]
[1729775022177,0.39551,2530.5,2530.4,6.08187755]
[1729775022490,0.39551,2530.5,2530.4,5.44289596]
[1729775022874,0.3955,2530.6,2530.5,0.39549]
[1729775023379,1.6785,2531.0,2530.5,0.39549]
[1729775023380,0.6899,2531.0,2530.5,6.54531362]
[1729775023577,0.98863,2530.9,2530.7,3.2078]
[1729775023782,0.39546,2530.8,2530.7,3.2078]
[1729775026089,0.98868,2530.8,2530.4,4.92670497]
[1729775026280,0.39551,2530.5,2530.4,4.57132497]
[1729775026484,0.39551,2530.5,2530.4,4.69500211]
[1729775026783,0.39548,2530.8,2530.7,0.39547]
[1729775027093,0.39548,2530.8,2530.7,3.60327]
[1729775027288,0.98872,2530.7,2530.2,1.03451114]
[1729775027482,0.39556,2530.2,2530.1,3.2078]
[1729775027681,0.39556,2530.2,2530.1,3.33147804]
[1729775028388,0.39556,2530.2,2530.1,3.58505695]
[1729775028583,0.39556,2530.2,2530.1,3.46137891]
[1729775028781,0.39556,2530.2,2530.1,3.85694891]
[1729775028979,0.39556,2530.2,2530.1,3.46137891]
[1729775029188,0.39556,2530.2,2530.1,3.85694891]
[1729775029385,0.9888,2530.5,2530.1,3.85694891]
[1729775029593,0.39556,2530.2,2530.1,3.85694891]
[1729775032387,0.39556,2530.2,2530.1,3.46137891]
[1729775032980,0.39556,2530.2,2530.1,3.85694891]
[1729775033385,0.9888,2530.5,2530.1,3.85694891]
[1729775033691,0.39556,2530.2,2530.1,3.85694891]
[1729775034791,0.39556,2530.2,2530.1,4.56534891]
[1729775035393,0.39556,2530.2,2530.1,4.16977891]
[1729775038094,0.39556,2530.2,2530.1,3.46137891]
[1729775040908,0.39556,2530.2,2530.1,3.85694891]
[1729775042307,0.39555,2530.3,2530.2,0.39556]
[1729775042503,0.39555,2530.3,2530.2,1.11456]
[1729775046407,0.39555,2530.3,2530.2,0.719]
[1729775046711,0.39555,2530.3,2530.2,1.11456]
[1729775047908,0.39555,2530.3,2530.2,0.719]
[1729775048214,0.98878,2530.5,2530.1,3.46137891]
[1729775048409,1.13796,2530.2,2530.1,3.46137891]
[1729775049111,1.13796,2530.2,2530.1,3.58506515]
[1729775049906,1.13796,2530.2,2530.1,3.98063515]
[1729775049907,0.39556,2530.2,2530.1,3.98063515]
[1729775050111,0.39555,2530.3,2530.2,0.39554]
[1729775050313,0.39555,2530.3,2530.2,0.51922624]
[1729775050511,0.7424,2530.5,2530.2,0.12368624]
[1729775050708,3.2078,2530.9,2530.1,3.46137891]
[1729775050709,0.39545,2530.9,2530.8,0.39545]
[1729775050916,0.7424,2531.4,2530.8,11.9003382]
[1729775051212,0.39539,2531.3,2531.2,3.2078]
[1729775052518,0.39539,2531.3,2531.2,3.6032]
[1729775052711,0.39539,2531.3,2531.2,3.72682996]
[1729775052908,0.39538,2531.4,2531.3,0.39538]
[1729775053210,0.39538,2531.4,2531.3,1.15478]
[1729775053415,0.39538,2531.4,2531.3,0.7594]
[1729775053620,0.39538,2531.4,2531.3,1.15478]
[1729775054115,0.39538,2531.4,2531.3,0.7594]
[1729775054721,0.39538,2531.4,2531.3,1.15478]
[1729775055216,0.39538,2531.4,2531.3,0.7594]
[1729775055714,0.39538,2531.4,2531.3,1.15478]
[1729775056803,1.69366,2531.6,2531.2,3.2078]
[1729775057012,0.39538,2531.3,2531.2,3.2078]
[1729775057314,0.3954,2531.2,2531.1,2.41027343]
[1729775057511,0.3954,2531.2,2531.1,2.01486343]